bitfinex/quotes_BTCUSD_20251207
["timestamp","ask_amount","ask_price","bid_price","bid_amount"]
[1765114498534,0.01122851,89059.0,89056.0,0.001]
[1765114498777,0.23579873,89059.0,89056.0,0.001]
[1765114498915,0.23579873,89059.0,89057.0,0.01784]
[1765114498916,0.09319,89058.0,89057.0,0.01784]
[1765114499118,0.09319,89058.0,89048.0,0.07703798]
[1765114499119,0.22459544,89049.0,89048.0,0.01]
[1765114499318,0.22459544,89049.0,89048.0,0.02784]
[1765114500153,0.23582177,89051.0,89048.0,0.02784]
[1765114500352,0.01122952,89051.0,89048.0,0.02784]
[1765114500554,0.23582035,89051.0,89049.0,0.01784]
[1765114501978,0.23582035,89051.0,89048.0,0.011]
[1765114502145,0.28888544,89049.0,89048.0,0.01]
[1765114502480,0.28888544,89049.0,89048.0,0.02784]
[1765114502732,0.38207544,89049.0,89048.0,0.02784]
[1765114502953,0.38368831,89049.0,89048.0,0.02784]
[1765114503581,0.38468831,89049.0,89048.0,0.02984]
[1765114503903,0.38468831,89049.0,89048.0,0.02884]
[1765114504326,0.38668831,89049.0,89048.0,0.02884]
[1765114504524,0.38568831,89049.0,89048.0,0.02784]
[1765114504926,0.39068831,89049.0,89048.0,0.02884]
[1765114507412,0.29749831,89049.0,89048.0,0.02884]
[1765114507578,0.23320831,89049.0,89048.0,0.02884]
[1765114508190,0.007,89049.0,89048.0,0.02884]
[1765114509286,0.002,89049.0,89048.0,0.09036299]
[1765114509914,0.01122775,89065.0,89062.0,0.01122813]
[1765114510146,0.01122775,89065.0,89063.0,0.08487798]
[1765114510310,0.01122775,89065.0,89063.0,0.01784]
[1765114510692,0.22455762,89064.0,89063.0,0.01784]
[1765114511869,0.22555762,89064.0,89063.0,0.01784]
[1765114512503,0.29015762,89064.0,89063.0,0.01784]
[1765114512709,0.38017762,89064.0,89063.0,0.01784]
[1765114512913,0.29015762,89064.0,89063.0,0.01784]
[1765114513210,0.22855762,89064.0,89063.0,0.01884]
[1765114513354,0.38317762,89064.0,89063.0,0.01884]
[1765114513557,0.22855762,89064.0,89063.0,0.01884]
[1765114514763,0.004,89064.0,89063.0,0.01884]
[1765114516364,0.22855762,89064.0,89063.0,0.01884]
[1765114520004,0.29315762,89064.0,89063.0,0.01884]
[1765114521405,0.29477049,89064.0,89063.0,0.01884]
[1765114521604,0.38479049,89064.0,89063.0,0.01884]
[1765114522194,0.29477049,89064.0,89063.0,0.01884]
[1765114523905,0.23017049,89064.0,89063.0,0.01884]
[1765114524304,0.29477049,89064.0,89063.0,0.01884]
[1765114524517,0.38479049,89064.0,89063.0,0.01884]
[1765114527656,0.23017049,89064.0,89063.0,0.01884]
[1765114528258,0.29477049,89064.0,89063.0,0.01884]
[1765114528458,0.38479049,89064.0,89063.0,0.01884]
[1765114529900,0.38479049,89064.0,89063.0,0.001]
[1765114530280,0.70779049,89064.0,89063.0,0.001]
[1765114530599,0.74210008,89064.0,89063.0,0.001]
[1765114530814,1.14210008,89064.0,89063.0,0.001]
[1765114531406,0.2245904,89051.0,89050.0,0.01784]
[1765114531597,0.4062304,89051.0,89050.0,0.01784]
[1765114532805,0.22459544,89049.0,89039.0,0.01784]
[1765114533022,0.28919544,89049.0,89039.0,0.01784]
[1765114533478,0.37921544,89049.0,89039.0,0.01784]
[1765114533696,0.37921544,89049.0,89020.0,0.01123343]
[1765114533818,0.37921544,89049.0,89036.0,0.01784]
[1765114534956,0.77921544,89049.0,89036.0,0.01784]
[1765114535179,0.78121544,89049.0,89048.0,0.011]
[1765114535379,0.78121544,89049.0,89048.0,0.01]
[1765114535542,0.78321544,89049.0,89048.0,0.01]
[1765114535744,0.78921544,89049.0,89048.0,0.012]
[1765114537681,0.38921544,89049.0,89048.0,0.012]
[1765114551806,0.4764397,89049.0,89048.0,0.012]
[1765114552467,0.38921544,89049.0,89048.0,0.012]
[1765114552656,0.72258339,89049.0,89048.0,0.012]
[1765114553221,1.56646939,89049.0,89048.0,0.012]
[1765114553433,1.96646939,89049.0,89048.0,0.012]
[1765114553682,1.88959339,89049.0,89048.0,0.012]
[1765114553854,1.63016145,89049.0,89048.0,0.012]
[1765114554067,1.63016145,89049.0,89048.0,0.01211842]
[1765114555767,1.12258339,89049.0,89048.0,0.01211842]
[1765114556458,1.89183815,89049.0,89048.0,0.01211842]
[1765114557633,1.82916715,89049.0,89048.0,0.01211842]
[1765114557989,1.14649115,89049.0,89048.0,0.01211842]
[1765114558486,1.26078815,89049.0,89048.0,0.01211842]
[1765114558838,0.86078815,89049.0,89048.0,0.01211842]
[1765114560316,0.33347115,89049.0,89048.0,0.01211842]
[1765114560492,0.30956339,89049.0,89048.0,0.01211842]
[1765114560865,0.73212339,89049.0,89048.0,0.01211842]
[1765114561067,0.01123254,89027.0,89024.0,0.01784]
[1765114561709,0.01123254,89027.0,89019.0,0.01123355]
[1765114561710,0.01123343,89020.0,89014.0,0.01016]
[1765114561909,0.01123343,89020.0,89017.0,0.01784]
[1765114561910,0.01123368,89018.0,89017.0,0.01784]
[1765114562119,0.01123368,89018.0,89014.0,0.02139418]
[1765114562120,0.0112338,89017.0,89014.0,0.02139418]
[1765114562321,0.0112338,89017.0,89015.0,0.01784]
[1765114562724,0.2246787,89016.0,89015.0,0.01784]
[1765114563127,0.2881187,89016.0,89015.0,0.01784]
[1765114563332,0.06344,89016.0,89015.0,0.01784]
[1765114564531,0.06344,89016.0,89015.0,0.01884]
[1765114564779,0.06644,89016.0,89015.0,0.03184]
[1765114565119,0.003,89016.0,89015.0,0.03184]
[1765114565527,0.15906,89016.0,89015.0,0.03184]
[1765114566134,0.15906,89016.0,89015.0,0.014]
[1765114566351,0.15906,89016.0,89015.0,0.03184]
[1765114567455,0.15606,89016.0,89015.0,0.01884]
[1765114567815,0.15606,89016.0,89015.0,0.01784]
[1765114567983,0.15806,89016.0,89015.0,0.02784]
[1765114569790,0.002,89016.0,89015.0,0.02784]
[1765114570403,0.06544,89016.0,89015.0,0.02784]
[1765114571085,0.002,89016.0,89015.0,0.02784]
[1765114574486,0.06274,89016.0,89015.0,0.02784]
[1765114574742,0.16158,89016.0,89015.0,0.02784]
[1765114575528,0.0487,89016.0,89015.0,0.02784]
[1765114575869,0.002,89016.0,89015.0,0.02784]
[1765114576203,0.2266787,89016.0,89015.0,0.02784]
[1765114576406,0.002,89016.0,89015.0,0.038]
[1765114576798,0.002,89016.0,89015.0,0.26268123]
[1765114576995,0.002,89016.0,89015.0,0.27284123]
[1765114577439,0.002,89016.0,89015.0,0.33536422]
[1765114579249,0.002,89016.0,89015.0,0.65836422]
[1765114579991,0.01122989,89048.0,89043.0,0.01123052]
[1765114580214,0.01122989,89048.0,89047.0,0.01016]
[1765114580382,0.01122977,89049.0,89047.0,0.01016]
[1765114580562,0.01122939,89052.0,89048.0,0.01016]
[1765114580763,0.2245904,89051.0,89049.0,0.01016]
[1765114580998,0.01122964,89050.0,89047.0,0.01016]
[1765114581179,0.23583147,89047.0,89044.0,0.01784]
[1765114581372,0.23583147,89047.0,89030.0,0.01016]
[1765114581373,0.01123128,89037.0,89030.0,0.01016]
[1765114581571,0.01123179,89033.0,89031.0,0.01784]
[1765114581774,0.22463833,89032.0,89031.0,0.01784]
[1765114581975,0.01123179,89033.0,89031.0,0.01784]
[1765114582379,0.01123179,89033.0,89030.0,0.01016]
[1765114582599,0.01123179,89033.0,89026.0,0.01016]
[1765114582600,0.22465094,89027.0,89026.0,0.01016]
[1765114582800,0.27135094,89027.0,89026.0,0.01784]
[1765114582984,0.33209094,89027.0,89026.0,0.01784]
[1765114583412,0.01123292,89024.0,89021.0,0.01016]
[1765114583608,0.01123292,89024.0,89022.0,0.01784]
[1765114583609,0.22466104,89023.0,89022.0,0.01784]
[1765114584367,0.01123292,89024.0,89022.0,0.01784]
[1765114584497,0.22466104,89023.0,89022.0,0.01784]
[1765114585105,0.001,89023.0,89022.0,0.02384]
[1765114585505,0.001,89023.0,89022.0,0.034]
[1765114585738,0.001,89023.0,89022.0,0.04416]
[1765114586149,0.001,89023.0,89022.0,0.04616]
[1765114587146,0.001,89023.0,89022.0,0.10868299]
[1765114592249,0.001,89023.0,89022.0,0.09084299]
[1765114592458,0.001,89023.0,89022.0,0.33334655]
[1765114593879,0.001,89023.0,89022.0,0.31550655]
[1765114594080,0.001,89023.0,89022.0,0.33334655]
[1765114595292,0.001,89023.0,89022.0,0.32318655]
[1765114595735,0.001,89023.0,89022.0,0.33334655]
[1765114596427,0.001,89023.0,89022.0,0.32318655]
[1765114596651,0.001,89023.0,89022.0,0.33334655]
[1765114597031,0.001,89023.0,89022.0,0.31550655]
[1765114597236,0.001,89023.0,89022.0,0.33334655]
[1765114604018,0.001,89023.0,89022.0,0.32318655]
[1765114604416,0.001,89023.0,89022.0,0.33334655]
[1765114605370,0.001,89023.0,89022.0,0.26066356]
[1765114608413,0.001,89023.0,89022.0,0.036]
[1765114609393,0.001,89023.0,89022.0,0.02584]
[1765114609796,0.001,89023.0,89022.0,0.036]
[1765114614461,0.22566104,89023.0,89022.0,0.02584]
[1765114615627,0.001,89023.0,89022.0,0.02584]
[1765114616685,0.001,89023.0,89022.0,0.036]
[1765114617875,0.001,89023.0,89022.0,0.27082356]
[1765114618070,0.001,89023.0,89022.0,0.33334655]
[1765114618445,0.001,89023.0,89022.0,0.65634655]
[1765114618655,5.0,89027.0,89026.0,0.28717646]
[1765114618860,5.0,89027.0,89026.0,0.30549646]
[1765114619500,5.0,89027.0,89026.0,0.32333646]
[1765114619712,5.0,89027.0,89026.0,0.30549646]
[1765114619926,5.001,89027.0,89026.0,0.32333646]
[1765114620437,5.001,89027.0,89026.0,0.32833646]
[1765114620739,5.001,89027.0,89026.0,0.32933646]
[1765114621307,5.001,89027.0,89026.0,0.32833646]
[1765114621529,5.001,89027.0,89026.0,0.32311023]
[1765114621731,5.0,89027.0,89026.0,0.31811023]
[1765114622104,5.001,89027.0,89026.0,0.31911023]
[1765114622311,5.001,89027.0,89026.0,0.30991023]
[1765114622507,5.0,89027.0,89026.0,0.30891023]
[1765114622709,5.001,89027.0,89026.0,0.29211023]
[1765114622912,5.001,89027.0,89026.0,0.01016]
[1765114623111,5.001,89027.0,89026.0,0.0178]
[1765114623112,5.0,89027.0,89026.0,0.0178]
[1765114623310,5.001,89027.0,89026.0,0.0198]
[1765114623514,5.001,89027.0,89026.0,0.002]
[1765114623738,5.0,89027.0,89026.0,0.0178]
[1765114624193,5.0,89027.0,89026.0,0.02796]
[1765114624722,5.0,89027.0,89026.0,0.0188]
[1765114625384,5.003,89027.0,89026.0,0.0198]
[1765114625591,5.0,89027.0,89026.0,0.0188]
[1765114625796,5.0,89027.0,89026.0,0.01800688]
[1765114626009,5.002,89027.0,89026.0,0.01900688]
[1765114626430,5.002,89027.0,89026.0,0.02816688]
[1765114627314,5.002,89027.0,89026.0,0.03732688]
[1765114627736,5.002,89027.0,89026.0,0.02816688]
[1765114630308,5.002,89027.0,89026.0,0.01900688]
[1765114631877,5.11372,89027.0,89026.0,0.01900688]
[1765114632084,5.05151,89027.0,89026.0,0.01900688]
[1765114633304,5.002,89027.0,89026.0,0.01900688]
[1765114634521,5.002,89027.0,89026.0,0.00120688]
[1765114634732,5.002,89027.0,89026.0,0.01900688]
[1765114635084,5.22665094,89027.0,89026.0,0.01900688]
[1765114635309,5.27616094,89027.0,89026.0,0.01900688]
[1765114635525,5.27616094,89027.0,89026.0,0.00120688]
[1765114635526,5.43127094,89027.0,89026.0,0.00120688]
[1765114635740,5.4650071,89027.0,89026.0,0.01900688]
[1765114636272,5.3098971,89027.0,89026.0,0.0188]
[1765114636690,5.3108971,89027.0,89026.0,0.0188]
[1765114636892,5.08624616,89027.0,89026.0,0.0188]
[1765114637737,5.08424616,89027.0,89026.0,0.0178]
[1765114637959,5.08924616,89027.0,89026.0,0.0188]
[1765114638500,5.03973616,89027.0,89026.0,0.0188]
[1765114639946,5.006,89027.0,89026.0,0.02796]
[1765114640195,5.006,89027.0,89026.0,0.09499798]
[1765114641011,5.006,89027.0,89026.0,0.31965145]
[1765114641424,5.006,89027.0,89026.0,0.32881145]
[1765114641906,5.006,89027.0,89026.0,0.31965145]
[1765114642241,5.0,89027.0,89026.0,0.31865145]
[1765114642534,5.001,89027.0,89026.0,0.09499798]
[1765114642754,5.001,89027.0,89026.0,0.31965145]
[1765114644168,5.001,89027.0,89026.0,0.0188]
[1765114651519,5.15611,89027.0,89026.0,0.001]
[1765114651707,5.15611,89027.0,89026.0,0.0188]
[1765114653197,5.06321,89027.0,89026.0,0.0188]
[1765114653426,5.15611,89027.0,89026.0,0.0188]
[1765114653808,5.15611,89027.0,89026.0,0.001]
[1765114654196,5.1997442,89027.0,89026.0,0.001]
[1765114654396,5.1997442,89027.0,88994.0,0.01123671]
[1765114654397,0.2246989,89008.0,88996.0,0.01016]
[1765114654602,0.3147463,89008.0,89007.0,0.02009914]
[1765114655045,0.4076463,89008.0,89007.0,0.02009914]
[1765114655279,0.4076463,89008.0,89007.0,0.00229914]
[1765114655569,0.4076463,89008.0,89007.0,0.02009914]
[1765114655861,0.4076463,89008.0,89007.0,0.00229914]
[1765114656160,0.4076463,89008.0,89007.0,0.02009914]
[1765114656796,0.4086463,89008.0,89007.0,0.02209914]
[1765114657086,0.4076463,89008.0,89007.0,0.02009914]
[1765114657248,0.4076463,89008.0,89007.0,0.02109914]
[1765114657446,0.4086463,89008.0,89007.0,0.02209914]
[1765114658395,0.3157463,89008.0,89007.0,0.02209914]
[1765114659630,0.4086463,89008.0,89007.0,0.02209914]
[1765114660903,0.4086463,89008.0,89007.0,0.00429914]
[1765114661110,0.4086463,89008.0,89007.0,0.02209914]
[1765114662048,0.4086463,89008.0,89007.0,0.00429914]
[1765114662230,0.4086463,89008.0,89007.0,0.02209914]
[1765114662647,0.4086463,89008.0,89007.0,0.00429914]
[1765114662802,0.4086463,89008.0,89007.0,0.02209914]
[1765114663667,0.41025917,89008.0,89007.0,0.02209914]
[1765114664922,0.50377283,89008.0,89007.0,0.02209914]
[1765114665224,0.31735917,89008.0,89007.0,0.02209914]
[1765114665431,0.25514917,89008.0,89007.0,0.02209914]
[1765114665914,0.22740917,89008.0,89007.0,0.03225914]
[1765114666079,0.22640917,89008.0,89007.0,0.02109914]
[1765114666278,0.23240917,89008.0,89007.0,0.02109914]
[1765114666818,0.0020974,89008.0,89007.0,0.03025914]
[1765114667020,0.0040974,89008.0,89007.0,0.10845712]
[1765114667197,0.0040974,89008.0,89007.0,0.17098011]
[1765114667198,0.0020974,89008.0,89007.0,0.17098011]
[1765114668526,0.0020974,89008.0,89007.0,0.49398011]
[1765114669111,9.74e-05,89008.0,89007.0,0.49298011]
[1765114669662,9.74e-05,89008.0,89007.0,0.49398011]
[1765114669997,0.0010974,89008.0,89007.0,0.49498011]
[1765114670200,9.74e-05,89008.0,89007.0,0.49298011]
[1765114670518,9.74e-05,89008.0,89007.0,1.43929411]
[1765114670721,0.0010974,89008.0,89007.0,1.44429411]
[1765114670930,9.74e-05,89008.0,89007.0,1.43729411]
[1765114671476,0.0010974,89008.0,89007.0,1.44829411]
[1765114672847,0.0010974,89008.0,89007.0,1.16736611]
[1765114673055,0.0010974,89008.0,89007.0,0.76369311]
[1765114673394,0.0010974,89008.0,89007.0,0.84416708]
[1765114673574,0.0010974,89008.0,89007.0,0.76369311]
[1765114674062,0.0010974,89008.0,89007.0,1.00836411]
[1765114674275,0.0010974,89008.0,89007.0,1.088815]
[1765114674477,1e-08,89008.0,89007.0,1.088815]
[1765114674882,1e-08,89008.0,89007.0,1.00836411]
[1765114676050,1e-08,89008.0,89007.0,1.08879057]
[1765114676292,1e-08,89008.0,89007.0,0.78703711]
[1765114677150,1e-08,89008.0,89007.0,0.90119028]
[1765114678177,1e-08,89008.0,89007.0,0.82076382]
[1765114691130,1e-08,89008.0,89007.0,1.51153282]
[1765114691532,1e-08,89008.0,89007.0,0.44145712]
[1765114691738,1e-08,89008.0,89007.0,0.11845712]
[1765114691935,1e-08,89008.0,89007.0,0.44145712]
[1765114692109,1e-08,89008.0,89007.0,0.50398011]
[1765114692474,1e-08,89008.0,89007.0,0.44145712]
[1765114692750,1e-08,89008.0,89007.0,0.50398011]
[1765114701735,1e-08,89008.0,89007.0,0.58473895]
[1765114702338,1e-08,89008.0,89007.0,0.50398011]
[1765114702973,1e-08,89008.0,89007.0,0.48618011]
[1765114703188,1e-08,89008.0,89007.0,0.44145712]
[1765114703401,1e-08,89008.0,89007.0,0.50398011]
[1765114703815,1e-08,89008.0,89007.0,0.50098011]
[1765114703975,1e-08,89008.0,89007.0,0.49298011]
[1765114704181,5.0,89027.0,89024.0,0.01123292]
[1765114704412,5.00161287,89027.0,89026.0,0.07719798]
[1765114705314,5.00161287,89027.0,89026.0,0.01016]
[1765114705496,5.00161287,89027.0,89025.0,0.0178]
[1765114705732,5.00161287,89027.0,89026.0,0.23481347]
[1765114706154,5.00261287,89027.0,89026.0,0.23681347]
[1765114706362,5.00161287,89027.0,89026.0,0.23481347]
[1765114706772,5.00261287,89027.0,89026.0,0.23481347]
[1765114706919,5.00161287,89027.0,89026.0,0.23481347]
[1765114707383,5.00261287,89027.0,89026.0,0.002]
[1765114707592,5.42898381,89027.0,89026.0,0.002]
[1765114708067,5.42898381,89027.0,89026.0,0.0198]
[1765114708529,5.42898381,89027.0,89026.0,0.002]
[1765114708530,5.53868887,89027.0,89026.0,0.002]
[1765114708879,5.42898381,89027.0,89026.0,0.002]
[1765114709648,0.22466609,89021.0,89020.0,0.0178]
[1765114709956,0.28860609,89021.0,89020.0,0.0178]
[1765114710559,0.23589599,89023.0,89020.0,0.0178]
[1765114710793,0.002,89021.0,89020.0,0.0178]
[1765114711199,0.007,89021.0,89020.0,0.0188]
[1765114711816,0.07094,89021.0,89020.0,0.0188]
[1765114712238,0.06594,89021.0,89020.0,0.0178]
[1765114712462,0.06394,89021.0,89020.0,0.0178]
[1765114712665,0.06394,89021.0,89020.0,0.0188]
[1765114712868,0.22466609,89021.0,89020.0,0.0178]
[1765114713279,0.22566609,89021.0,89020.0,0.0188]
[1765114713696,0.22666609,89021.0,89020.0,0.0188]
[1765114714409,0.29060609,89021.0,89020.0,0.0188]
[1765114714761,0.22666609,89021.0,89020.0,0.0188]
[1765114715587,0.38097609,89021.0,89020.0,0.0188]
[1765114718220,0.22666609,89021.0,89020.0,0.0188]
[1765114718526,0.002,89021.0,89020.0,0.0188]
[1765114719733,0.15631,89021.0,89020.0,0.0188]
[1765114723791,0.17886225,89021.0,89020.0,0.0188]
[1765114724624,0.17886225,89021.0,89020.0,0.001]
[1765114724825,0.61156731,89021.0,89020.0,0.001]
[1765114725040,0.47931,89021.0,89020.0,0.001]
[1765114725429,0.47831,89021.0,89020.0,0.001]
[1765114725984,0.47831,89021.0,89009.0,0.0178]
[1765114725985,0.01123444,89012.0,89009.0,0.0178]
[1765114726206,0.09557,89010.0,89009.0,0.01819504]
[1765114726558,0.21177225,89010.0,89009.0,0.01819504]
[1765114728479,0.21477225,89010.0,89009.0,0.01919504]
[1765114728706,0.21477225,89010.0,89009.0,0.00139504]
[1765114728843,0.21577225,89010.0,89009.0,0.00139504]
[1765114729286,0.19322,89010.0,89009.0,0.00139504]
[1765114729499,0.21577225,89010.0,89009.0,0.00139504]
[1765114733096,0.63465118,89010.0,89009.0,0.00139504]
[1765114733297,0.64638448,89010.0,89009.0,0.00139504]
[1765114733522,0.63263484,89010.0,89009.0,0.00139504]
[1765114733722,1.03263484,89010.0,89009.0,0.00139504]
[1765114734535,1.02863484,89010.0,89009.0,0.00039504]
[1765114734877,1.04263484,89010.0,89009.0,0.00239504]
[1765114735200,0.71963484,89010.0,89009.0,0.00239504]
[1765114735397,0.74353179,89010.0,89009.0,0.00239504]
[1765114736512,0.71963484,89010.0,89009.0,0.00239504]
[1765114737150,0.74353107,89010.0,89009.0,0.00239504]
[1765114737349,1.06653107,89010.0,89009.0,0.00239504]
[1765114737718,0.97065214,89010.0,89009.0,0.00239504]
[1765114739759,0.97065214,89010.0,88977.0,0.29181472]
[1765114739761,0.97065214,89010.0,88955.0,0.0178]
[1765114739762,0.22479234,88971.0,88955.0,0.0178]
[1765114739958,0.22479234,88971.0,88970.0,0.00031093]
[1765114739959,0.28889234,88971.0,88970.0,0.00031093]
[1765114740168,0.38574234,88971.0,88970.0,0.00031093]
[1765114740642,0.45799863,88971.0,88970.0,0.00031093]
[1765114740838,0.78099863,88971.0,88970.0,0.00031093]
[1765114741151,0.78199863,88971.0,88970.0,0.00431093]
[1765114741356,0.78199863,88971.0,88970.0,0.00031093]
[1765114741766,0.22481761,88961.0,88950.0,0.0002]
[1765114741975,0.65176298,88961.0,88960.0,0.0002974]
[1765114742187,0.73825761,88961.0,88960.0,0.0002974]
[1765114742948,0.54784289,88951.0,88950.0,0.0002]
[1765114743122,0.78838874,88951.0,88950.0,0.0002]
[1765114743502,0.8003282,88951.0,88950.0,0.0002]
[1765114743984,0.80483128,88951.0,88950.0,0.0002]
[1765114744169,0.8048311,88951.0,88950.0,0.0002]
[1765114744575,1.2048311,88951.0,88950.0,0.0002]
[1765114744987,1.125315,88951.0,88950.0,0.0002]
[1765114745199,1.129315,88951.0,88950.0,0.0002]
[1765114745413,1.137315,88951.0,88950.0,0.0022]
[1765114746148,1.12698859,88951.0,88950.0,0.0022]
[1765114746345,1.11848551,88951.0,88950.0,0.0022]
[1765114746778,1.22819057,88951.0,88950.0,0.00396798]
[1765114746940,1.22019057,88951.0,88950.0,0.00196798]
[1765114747345,1.11348551,88951.0,88950.0,0.00896798]
[1765114747674,1.11348551,88951.0,88950.0,0.00196798]
[1765114747675,0.38748551,88951.0,88950.0,0.00196798]
[1765114747887,0.29363551,88951.0,88950.0,0.00696798]
[1765114748224,0.39048551,88951.0,88950.0,0.00696798]
[1765114748940,0.39048551,88951.0,88950.0,0.00196798]
[1765114748941,0.38848551,88951.0,88950.0,0.00196798]
[1765114750125,0.06979262,88951.0,88950.0,0.00896798]
[1765114750332,0.00569262,88951.0,88950.0,0.00896798]
[1765114751167,0.00407975,88951.0,88950.0,0.00896798]
[1765114751731,0.06601975,88951.0,88950.0,0.00896798]
[1765114752129,0.00407975,88951.0,88950.0,0.01535798]
[1765114752472,0.00407975,88951.0,88950.0,0.02174798]
[1765114752809,0.00407975,88951.0,88950.0,0.08427097]
[1765114753011,0.01123797,88984.0,88977.0,0.01123885]
[1765114753210,0.01123797,88984.0,88977.0,0.00011856]
[1765114753211,0.22477213,88979.0,88977.0,0.00011856]
[1765114753412,0.13342225,88978.0,88977.0,0.00011856]
[1765114753654,0.13342225,88978.0,88977.0,0.00106323]
[1765114753849,0.44793691,88978.0,88977.0,0.00106323]
[1765114754051,0.2359983,88984.0,88977.0,0.00106323]
[1765114754276,0.003,88979.0,88977.0,0.01211856]
[1765114754670,0.01123848,88980.0,88977.0,0.00011856]
[1765114754877,0.003,88978.0,88977.0,0.01011856]
[1765114755283,0.20361,88978.0,88977.0,0.01011856]
[1765114755661,0.20522287,88978.0,88977.0,0.01011856]
[1765114756058,0.20222287,88978.0,88977.0,0.00011856]
[1765114756456,0.20222287,88978.0,88977.0,0.01011856]
[1765114756676,0.20222287,88978.0,88977.0,0.00011856]
[1765114757075,0.20422287,88978.0,88977.0,0.00811856]
[1765114757273,0.05254287,88978.0,88977.0,0.00911856]
[1765114757486,0.23600277,88982.0,88977.0,0.00911856]
[1765114757487,0.22475752,88985.0,88978.0,0.01123873]
[1765114757770,0.22475788,88985.0,88979.0,0.2538106]
[1765114757972,0.22475788,88985.0,88979.0,0.0290386]
[1765114758176,0.01123822,88982.0,88979.0,0.0290386]
[1765114758324,0.06194,88980.0,88979.0,0.0178]
[1765114759505,0.15168,88980.0,88979.0,0.0238]
[1765114759972,0.15168,88980.0,88979.0,0.0178]
[1765114760178,0.15168,88980.0,88979.0,0.0186837]
[1765114760468,0.17623225,88980.0,88979.0,0.0276837]
[1765114761125,0.17623225,88980.0,88979.0,0.0286837]
[1765114761653,0.15368,88980.0,88979.0,0.0286837]
[1765114762081,0.06394,88980.0,88979.0,0.0286837]
[1765114762286,0.06394,88980.0,88947.0,0.01124265]
[1765114762287,0.01124189,88953.0,88947.0,0.01124265]
[1765114762492,0.01124189,88953.0,88951.0,0.0178]
[1765114762649,0.04893,88952.0,88951.0,0.0178]
[1765114763531,0.002,88953.0,88951.0,0.0178]
[1765114763754,0.01124176,88954.0,88951.0,0.0178]
[1765114764158,0.002,88952.0,88951.0,0.0248]
[1765114764533,0.22484289,88951.0,88950.0,0.00030635]
[1765114764731,0.28678289,88951.0,88950.0,0.01810635]
[1765114764936,0.37652289,88951.0,88950.0,0.01810635]
[1765114765725,0.37652289,88951.0,88950.0,0.01910635]
[1765114766567,0.28878289,88951.0,88950.0,0.02310635]
[1765114766739,0.22684289,88951.0,88950.0,0.02310635]
[1765114766922,0.22484289,88951.0,88950.0,0.01910635]
[1765114767127,0.22684289,88951.0,88950.0,0.02210635]
[1765114767328,0.22684289,88951.0,88950.0,0.02110635]
[1765114767882,0.002,88951.0,88950.0,0.02210635]
[1765114768250,0.002,88951.0,88950.0,0.02299048]
[1765114769461,0.002,88951.0,88950.0,0.03631048]
[1765114770084,0.002,88951.0,88950.0,0.02299048]
[1765114772103,0.002,88951.0,88950.0,0.03631048]
[1765114775577,0.002,88951.0,88950.0,0.04963048]
[1765114775876,0.002,88951.0,88950.0,0.03631048]
[1765114776454,0.002,88951.0,88950.0,0.04963048]
[1765114776739,0.002,88951.0,88950.0,0.03631048]
[1765114779640,0.002,88951.0,88950.0,0.02299048]
[1765114781400,0.17623225,88951.0,88950.0,0.02299048]
[1765114781554,0.15368,88951.0,88950.0,0.02299048]
[1765114782323,0.002,88951.0,88950.0,0.02299048]
[1765114786148,0.002,88951.0,88950.0,0.02831048]
[1765114786879,0.002,88951.0,88950.0,0.03363048]
[1765114791529,0.002,88951.0,88950.0,0.09656158]
[1765114792277,0.002,88951.0,88950.0,0.09556158]
[1765114792677,0.002,88951.0,88950.0,0.09656158]
[1765114793869,0.002,88951.0,88950.0,0.16359956]
[1765114794050,0.01123936,88973.0,88969.0,0.01123987]
[1765114794256,0.01123936,88973.0,88970.0,0.0178]
[1765114794457,0.01123936,88973.0,88970.0,0.02903974]
[1765114794838,0.01123898,88976.0,88971.0,0.01123961]
[1765114795040,0.00161287,88975.0,88972.0,0.01123949]
[1765114795264,0.01285198,88975.0,88972.0,0.01123949]
[1765114795468,0.02323936,88973.0,88970.0,0.03203974]
[1765114795982,0.02123936,88973.0,88970.0,0.03203974]
[1765114796211,0.02123936,88973.0,88972.0,0.22663982]
[1765114796212,0.01,88973.0,88972.0,0.22663982]
[1765114796696,0.01,88973.0,88972.0,0.22848982]
[1765114796900,0.01123784,88985.0,88972.0,0.22848982]
[1765114796901,0.01123797,88984.0,88981.0,0.01123835]
[1765114797199,0.01123784,88985.0,88982.0,0.02903822]
[1765114798002,0.01123734,88989.0,88983.0,0.0112381]
[1765114798203,0.01123759,88987.0,88984.0,0.01123797]
[1765114798525,0.003,88985.0,88984.0,0.01123797]
[1765114798736,0.01423784,88985.0,88982.0,0.0198]
[1765114799030,0.003,88985.0,88982.0,0.0198]
[1765114799204,0.003,88985.0,88982.0,0.03103822]
[1765114799409,0.003,88985.0,88984.0,0.001]
[1765114799813,0.01423784,88985.0,88982.0,0.0178]
[1765114800025,0.01123784,88985.0,88982.0,0.0178]
[1765114800225,0.01123784,88985.0,88984.0,0.002]
[1765114800422,0.01123784,88985.0,88982.0,0.0188]
[1765114800423,0.2247595,88984.0,88982.0,0.0188]
[1765114800633,0.08381225,88983.0,88982.0,0.0188]
[1765114800834,0.08542512,88983.0,88982.0,0.0188]
[1765114801036,0.17420047,88983.0,88982.0,0.001]
[1765114801216,0.17420047,88983.0,88971.0,0.00024384]
[1765114801217,0.22478982,88972.0,88971.0,0.00024384]
[1765114801419,0.31018269,88972.0,88971.0,0.00024384]
[1765114801781,0.72176269,88972.0,88971.0,0.00024384]
[1765114801980,1.12176269,88972.0,88971.0,0.00024384]
[1765114802920,1.12276269,88972.0,88971.0,0.00024384]
[1765114803543,1.12176269,88972.0,88971.0,0.00024384]
[1765114803756,1.13876269,88972.0,88971.0,0.00324384]
[1765114804007,1.14176269,88972.0,88971.0,0.00324384]
[1765114804758,1.25146775,88972.0,88971.0,0.00324384]
[1765114805101,1.14176269,88972.0,88971.0,0.00324384]
[1765114806677,0.65156982,88972.0,88971.0,0.00324384]
[1765114806893,0.59030982,88972.0,88971.0,0.00324384]
[1765114807083,0.65156982,88972.0,88971.0,0.00324384]
[1765114807559,0.74014982,88972.0,88971.0,0.00324384]
[1765114807759,0.72314982,88972.0,88971.0,0.00024384]
[1765114807908,0.003,88972.0,88971.0,0.00024384]